bitfinex-derivatives/quotes_BTCF0:USTF0_20230106
["timestamp","ask_amount","ask_price","bid_price","bid_amount"]
[1672994859423,0.88200247,16819.0,16818.0,0.00660381]
[1672994859635,1.48340247,16819.0,16818.0,0.00660381]
[1672994859838,0.88200247,16819.0,16818.0,0.00660381]
[1672994860048,1.48340247,16819.0,16818.0,0.00660381]
[1672994862576,0.88200247,16819.0,16818.0,0.00660381]
[1672994862789,1.48340247,16819.0,16818.0,0.00660381]
[1672994871939,0.88200247,16819.0,16818.0,0.00660381]
[1672994872255,1.48340247,16819.0,16818.0,0.00660381]
[1672994874043,0.88200247,16819.0,16818.0,0.00660381]
[1672994874258,1.48340247,16819.0,16818.0,0.00660381]
[1672994875834,0.88200247,16819.0,16818.0,0.00660381]
[1672994876036,1.48340247,16819.0,16818.0,0.00660381]
[1672994877510,0.88200247,16819.0,16818.0,0.00660381]
[1672994877725,1.48340247,16819.0,16818.0,0.00660381]
[1672994877937,0.88200247,16819.0,16818.0,0.00660381]
[1672994878148,1.48340247,16819.0,16818.0,0.00660381]
[1672994879514,0.88200247,16819.0,16818.0,0.00660381]
[1672994879724,1.48340247,16819.0,16818.0,0.00660381]
[1672994880455,0.88200247,16819.0,16818.0,0.00660381]
[1672994880883,1.48340247,16819.0,16818.0,0.00660381]
[1672994883918,0.88200247,16819.0,16818.0,0.00660381]
[1672994884341,1.48340247,16819.0,16818.0,0.00660381]
[1672994885078,1.18270247,16819.0,16818.0,0.00660381]
[1672994885293,1.48340247,16819.0,16818.0,0.00660381]
[1672994887615,0.88200247,16819.0,16818.0,0.00660381]
[1672994888027,1.48340247,16819.0,16818.0,0.00660381]
[1672994892023,0.88200247,16819.0,16818.0,0.00660381]
[1672994892236,1.48340247,16819.0,16818.0,0.00660381]
[1672994892667,1.48340247,16819.0,16818.0,0.0064111]
[1672994900118,0.88200247,16819.0,16818.0,0.0064111]
[1672994900329,1.48340247,16819.0,16818.0,0.0064111]
[1672994901596,0.88200247,16819.0,16818.0,0.0064111]
[1672994902020,1.48340247,16819.0,16818.0,0.0064111]
[1672994912963,0.88200247,16819.0,16818.0,0.0064111]
[1672994913274,1.48340247,16819.0,16818.0,0.0064111]
[1672994915475,0.88200247,16819.0,16818.0,0.0064111]
[1672994915794,1.18270247,16819.0,16818.0,0.0064111]
[1672994916110,0.88200247,16819.0,16818.0,0.0064111]
[1672994916339,1.48340247,16819.0,16818.0,0.0064111]
[1672994921995,0.88200247,16819.0,16818.0,0.0064111]
[1672994922210,1.48340247,16819.0,16818.0,0.0064111]
[1672994924635,0.88200247,16819.0,16818.0,0.0064111]
[1672994924941,1.48340247,16819.0,16818.0,0.0064111]
[1672994926630,0.88200247,16819.0,16818.0,0.0064111]
[1672994927894,1.48340247,16819.0,16818.0,0.0064111]
[1672994928094,1.18270247,16819.0,16818.0,0.0064111]
[1672994928621,0.88200247,16819.0,16818.0,0.0064111]
[1672994929262,1.48340247,16819.0,16818.0,0.0064111]
[1672994930310,0.88200247,16819.0,16818.0,0.0064111]
[1672994930624,1.48340247,16819.0,16818.0,0.0064111]
[1672994931045,0.88200247,16819.0,16818.0,0.0064111]
[1672994931570,1.48340247,16819.0,16818.0,0.0064111]
[1672994936091,0.88200247,16819.0,16818.0,0.0064111]
[1672994936301,1.48340247,16819.0,16818.0,0.0064111]
[1672994939981,0.88200247,16819.0,16818.0,0.0064111]
[1672994940293,1.48340247,16819.0,16818.0,0.0064111]
[1672994944074,0.88200247,16819.0,16818.0,0.0064111]
[1672994944289,1.48340247,16819.0,16818.0,0.0064111]
[1672994946075,0.88200247,16819.0,16818.0,0.0064111]
[1672994946285,1.48340247,16819.0,16818.0,0.0064111]
[1672994946806,1.48340247,16819.0,16818.0,0.0063083]
[1672994948921,0.88200247,16819.0,16818.0,0.0063083]
[1672994949236,1.48340247,16819.0,16818.0,0.0063083]
[1672994951023,0.88200247,16819.0,16818.0,0.0063083]
[1672994951235,1.48340247,16819.0,16818.0,0.0063083]
[1672994952593,0.88200247,16819.0,16818.0,0.0063083]
[1672994953017,1.48340247,16819.0,16818.0,0.0063083]
[1672994953435,1.18270247,16819.0,16818.0,0.0063083]
[1672994953757,1.48340247,16819.0,16818.0,0.0063083]
[1672994957119,1.18270247,16819.0,16818.0,0.0063083]
[1672994957438,1.48340247,16819.0,16818.0,0.0063083]
[1672994957851,0.88200247,16819.0,16818.0,0.0063083]
[1672994958064,1.48340247,16819.0,16818.0,0.0063083]
[1672994960903,0.88200247,16819.0,16818.0,0.0063083]
[1672994961113,1.48340247,16819.0,16818.0,0.0063083]
[1672994961840,0.88200247,16819.0,16818.0,0.0063083]
[1672994962265,1.48340247,16819.0,16818.0,0.0063083]
[1672994962894,0.88200247,16819.0,16818.0,0.0063083]
[1672994963103,1.48340247,16819.0,16818.0,0.0063083]
[1672994964058,0.88200247,16819.0,16818.0,0.0063083]
[1672994964274,1.48340247,16819.0,16818.0,0.0063083]
[1672994964579,0.88200247,16819.0,16818.0,0.0063083]
[1672994964997,1.48340247,16819.0,16818.0,0.0063083]
[1672994966478,0.88200247,16819.0,16818.0,0.0063083]
[1672994966688,1.48340247,16819.0,16818.0,0.0063083]
[1672994967000,0.88200247,16819.0,16818.0,0.0063083]
[1672994967734,1.48340247,16819.0,16818.0,0.0063083]
[1672994977723,0.88200247,16819.0,16818.0,0.0063083]
[1672994977929,1.48340247,16819.0,16818.0,0.0063083]
[1672994998734,1.48340247,16819.0,16818.0,0.00620311]
[1672995005585,0.88200247,16819.0,16818.0,0.00620311]
[1672995005790,1.48340247,16819.0,16818.0,0.00620311]
[1672995006528,0.88200247,16819.0,16818.0,0.00620311]
[1672995006744,1.48340247,16819.0,16818.0,0.00620311]
[1672995008621,0.88200247,16819.0,16818.0,0.00620311]
[1672995008830,1.48340247,16819.0,16818.0,0.00620311]
[1672995010734,0.88200247,16819.0,16818.0,0.00620311]
[1672995010937,1.48340247,16819.0,16818.0,0.00620311]
[1672995014616,0.88200247,16819.0,16818.0,0.00620311]
[1672995014935,1.48340247,16819.0,16818.0,0.00620311]
[1672995015574,0.88200247,16819.0,16818.0,0.00620311]
[1672995015888,1.48340247,16819.0,16818.0,0.00620311]
[1672995016730,1.18270247,16819.0,16818.0,0.00620311]
[1672995016939,1.48340247,16819.0,16818.0,0.00620311]
[1672995017463,0.88200247,16819.0,16818.0,0.00620311]
[1672995017672,1.48340247,16819.0,16818.0,0.00620311]
[1672995018833,0.88200247,16819.0,16818.0,0.00620311]
[1672995019035,1.48340247,16819.0,16818.0,0.00620311]
[1672995021141,0.88200247,16819.0,16818.0,0.00620311]
[1672995021562,1.48340247,16819.0,16818.0,0.00620311]
[1672995023765,0.88200247,16819.0,16818.0,0.00620311]
[1672995023980,1.48340247,16819.0,16818.0,0.00620311]
[1672995025028,0.88200247,16819.0,16818.0,0.00620311]
[1672995025240,1.48340247,16819.0,16818.0,0.00620311]
[1672995035107,0.88200247,16819.0,16818.0,0.00620311]
[1672995035433,1.48340247,16819.0,16818.0,0.00620311]
[1672995037631,0.88200247,16819.0,16818.0,0.00620311]
[1672995037844,1.48340247,16819.0,16818.0,0.00620311]
[1672995040783,0.88200247,16819.0,16818.0,0.00620311]
[1672995041215,1.48340247,16819.0,16818.0,0.00620311]
[1672995045937,0.88200247,16819.0,16818.0,0.00620311]
[1672995046255,1.48340247,16819.0,16818.0,0.00620311]
[1672995046986,0.88200247,16819.0,16818.0,0.00620311]
[1672995047303,1.48340247,16819.0,16818.0,0.00620311]
[1672995050876,0.88200247,16819.0,16818.0,0.00620311]
[1672995051087,1.48340247,16819.0,16818.0,0.00620311]
[1672995051605,1.48340247,16819.0,16818.0,0.00608283]
[1672995052451,0.88200247,16819.0,16818.0,0.00608283]
[1672995052657,1.48340247,16819.0,16818.0,0.00608283]
[1672995053395,0.88200247,16819.0,16818.0,0.00608283]
[1672995053606,1.48340247,16819.0,16818.0,0.00608283]
[1672995055077,0.88200247,16819.0,16818.0,0.00608283]
[1672995055285,1.48340247,16819.0,16818.0,0.00608283]
[1672995056022,1.18270247,16819.0,16818.0,0.00608283]
[1672995056233,1.48340247,16819.0,16818.0,0.00608283]
[1672995056649,0.88200247,16819.0,16818.0,0.00608283]
[1672995057071,1.48340247,16819.0,16818.0,0.00608283]
[1672995057701,0.88200247,16819.0,16818.0,0.00608283]
[1672995057914,1.48340247,16819.0,16818.0,0.00608283]
[1672995059492,0.88200247,16819.0,16818.0,0.00608283]
[1672995059703,1.48340247,16819.0,16818.0,0.00608283]
[1672995060020,0.88200247,16819.0,16818.0,0.00608283]
[1672995060223,1.48340247,16819.0,16818.0,0.00608283]
[1672995060640,0.88200247,16819.0,16818.0,0.00608283]
[1672995060859,1.48340247,16819.0,16818.0,0.00608283]
[1672995068538,0.88200247,16819.0,16818.0,0.00608283]
[1672995068750,1.48340247,16819.0,16818.0,0.00608283]
[1672995068950,0.88200247,16819.0,16818.0,0.00608283]
[1672995069160,1.48340247,16819.0,16818.0,0.00608283]
[1672995079684,0.88200247,16819.0,16818.0,0.00608283]
[1672995079893,1.48340247,16819.0,16818.0,0.00608283]
[1672995081685,1.18270247,16819.0,16818.0,0.00608283]
[1672995081883,1.48340247,16819.0,16818.0,0.00608283]
[1672995082528,1.18270247,16819.0,16818.0,0.00608283]
[1672995082842,1.48340247,16819.0,16818.0,0.00608283]
[1672995083368,0.88200247,16819.0,16818.0,0.00608283]
[1672995083578,1.48340247,16819.0,16818.0,0.00608283]
[1672995085774,0.88200247,16819.0,16818.0,0.00608283]
[1672995085985,1.48340247,16819.0,16818.0,0.00608283]
[1672995092510,1.18270247,16819.0,16818.0,0.00608283]
[1672995092722,1.48340247,16819.0,16818.0,0.00608283]
[1672995093138,0.88200247,16819.0,16818.0,0.00608283]
[1672995093350,1.48340247,16819.0,16818.0,0.00608283]
[1672995095571,0.88200247,16819.0,16818.0,0.00608283]
[1672995095879,1.48340247,16819.0,16818.0,0.00608283]
[1672995097029,0.88200247,16819.0,16818.0,0.00608283]
[1672995097244,1.48340247,16819.0,16818.0,0.00608283]
[1672995098292,1.18270247,16819.0,16818.0,0.00608283]
[1672995098506,1.48340247,16819.0,16818.0,0.00608283]
[1672995099447,0.88200247,16819.0,16818.0,0.00608283]
[1672995099766,1.48340247,16819.0,16818.0,0.00608283]
[1672995100390,1.48340247,16819.0,16818.0,0.00599835]
[1672995102910,0.88200247,16819.0,16818.0,0.00599835]
[1672995103127,1.48340247,16819.0,16818.0,0.00599835]
[1672995104383,0.88200247,16819.0,16818.0,0.00599835]
[1672995104600,1.48340247,16819.0,16818.0,0.00599835]
[1672995106056,0.88200247,16819.0,16818.0,0.00599835]
[1672995106270,1.48340247,16819.0,16818.0,0.00599835]
[1672995108475,0.88200247,16819.0,16818.0,0.00599835]
[1672995108698,1.48340247,16819.0,16818.0,0.00599835]
[1672995109113,0.88200247,16819.0,16818.0,0.00599835]
[1672995109428,1.48340247,16819.0,16818.0,0.00599835]
[1672995111645,0.88200247,16819.0,16818.0,0.00599835]
[1672995111965,1.48340247,16819.0,16818.0,0.00599835]
[1672995113215,0.88200247,16819.0,16818.0,0.00599835]
[1672995113650,1.48340247,16819.0,16818.0,0.00599835]
[1672995122259,1.48331244,16819.0,16818.0,0.00599835]
[1672995133095,0.88191244,16819.0,16818.0,0.00599835]
[1672995133308,1.48331244,16819.0,16818.0,0.00599835]
[1672995133725,0.88191244,16819.0,16818.0,0.00599835]
[1672995134040,1.48331244,16819.0,16818.0,0.00599835]
[1672995142127,0.88191244,16819.0,16818.0,0.00599835]
[1672995142342,1.48331244,16819.0,16818.0,0.00599835]
[1672995148870,0.88191244,16819.0,16818.0,0.00599835]
[1672995149073,1.48331244,16819.0,16818.0,0.00599835]
[1672995154648,0.88191244,16819.0,16818.0,0.00599835]
[1672995154853,1.48331244,16819.0,16818.0,0.00599835]
[1672995156328,0.88191244,16819.0,16818.0,0.00599835]
[1672995156540,1.48331244,16819.0,16818.0,0.00599835]
[1672995157490,0.88191244,16819.0,16818.0,0.00599835]
[1672995157698,1.48331244,16819.0,16818.0,0.00599835]
[1672995159692,0.88191244,16819.0,16818.0,0.00599835]
[1672995159901,1.48331244,16819.0,16818.0,0.00599835]
[1672995167264,1.48331244,16819.0,16818.0,0.00593076]
[1672995168100,0.88191244,16819.0,16818.0,0.00593076]
[1672995168310,1.48331244,16819.0,16818.0,0.00593076]
[1672995171782,0.88191244,16819.0,16818.0,0.00593076]
[1672995172102,1.48331244,16819.0,16818.0,0.00593076]
[1672995172516,1.18261244,16819.0,16818.0,0.00593076]
[1672995172727,0.88191244,16819.0,16818.0,0.00593076]
[1672995172945,1.48331244,16819.0,16818.0,0.00593076]
[1672995173783,0.88191244,16819.0,16818.0,0.00593076]
[1672995173988,1.48331244,16819.0,16818.0,0.00593076]
[1672995175038,0.88191244,16819.0,16818.0,0.00593076]
[1672995175254,1.48331244,16819.0,16818.0,0.00593076]
[1672995176515,0.88191244,16819.0,16818.0,0.00593076]
[1672995176728,1.48331244,16819.0,16818.0,0.00593076]
[1672995181674,0.88191244,16819.0,16818.0,0.00593076]
[1672995182096,1.48331244,16819.0,16818.0,0.00593076]
[1672995183559,0.88191244,16819.0,16818.0,0.00593076]
[1672995184087,1.18261244,16819.0,16818.0,0.00593076]
[1672995184301,1.48331244,16819.0,16818.0,0.00593076]
[1672995184721,0.88191244,16819.0,16818.0,0.00593076]
[1672995184933,1.48331244,16819.0,16818.0,0.00593076]
[1672995195984,0.88191244,16819.0,16818.0,0.00593076]
[1672995196285,1.48331244,16819.0,16818.0,0.00593076]
[1672995204807,0.88191244,16819.0,16818.0,0.00593076]
[1672995205016,1.48331244,16819.0,16818.0,0.00593076]
[1672995205650,0.88191244,16819.0,16818.0,0.00593076]
[1672995205860,0.2,16818.0,16815.0,0.3]
[1672995206078,0.6014,16816.0,16815.0,0.3]
[1672995206499,0.62390857,16816.0,16815.0,0.3]
[1672995207436,0.63690857,16816.0,16815.0,0.346]
[1672995212806,0.03550857,16816.0,16815.0,0.346]
[1672995213123,0.63690857,16816.0,16815.0,0.346]
[1672995216382,0.63677312,16816.0,16815.0,0.346]
[1672995220892,0.03537312,16816.0,16815.0,0.346]
[1672995221106,0.63677312,16816.0,16815.0,0.346]
[1672995224997,0.03537312,16816.0,16815.0,0.346]
[1672995225208,0.63677312,16816.0,16815.0,0.346]
[1672995226892,0.03537312,16816.0,16815.0,0.346]
[1672995227109,0.63677312,16816.0,16815.0,0.346]
[1672995227731,0.03537312,16816.0,16815.0,0.346]
[1672995228044,0.63677312,16816.0,16815.0,0.346]
[1672995233517,0.03537312,16816.0,16815.0,0.346]
[1672995233725,0.63677312,16816.0,16815.0,0.346]
[1672995237608,0.03537312,16816.0,16815.0,0.346]
[1672995237931,0.63677312,16816.0,16815.0,0.346]
[1672995244646,0.03537312,16816.0,16815.0,0.346]
[1672995244852,0.33607312,16816.0,16815.0,0.346]
[1672995246010,0.63677312,16816.0,16815.0,0.346]
[1672995250852,0.33607312,16816.0,16815.0,0.346]
[1672995259565,0.63677312,16816.0,16815.0,0.346]
[1672995260730,0.03537312,16816.0,16815.0,0.346]
[1672995260948,0.33607312,16816.0,16815.0,0.346]
[1672995261471,0.33607312,16816.0,16815.0,0.34585701]
[1672995265666,0.03537312,16816.0,16815.0,0.34585701]
[1672995266293,0.63677312,16816.0,16815.0,0.34585701]
[1672995270300,0.33607312,16816.0,16815.0,0.34585701]
[1672995271142,0.63677312,16816.0,16815.0,0.34585701]
[1672995272090,0.03537312,16816.0,16815.0,0.34585701]
[1672995272292,0.63677312,16816.0,16815.0,0.34585701]
[1672995273241,0.63677312,16816.0,16815.0,0.43488375]
[1672995273869,0.63677312,16816.0,16815.0,0.34585701]
[1672995274291,0.63677312,16816.0,16815.0,0.43504436]
[1672995275345,0.33607312,16816.0,16815.0,0.43504436]
[1672995276922,0.33607312,16816.0,16815.0,0.34585701]
[1672995283546,0.03531297,16816.0,16815.0,0.34585701]
[1672995283755,0.63671297,16816.0,16815.0,0.34585701]
[1672995284071,0.03531297,16816.0,16815.0,0.34585701]
[1672995284278,0.63671297,16816.0,16815.0,0.34585701]
[1672995286066,0.33601297,16816.0,16815.0,0.34585701]
[1672995286275,0.63671297,16816.0,16815.0,0.34585701]
[1672995288690,0.63671297,16816.0,16815.0,0.046]
[1672995294165,0.03531297,16816.0,16815.0,0.046]
[1672995294383,0.63671297,16816.0,16815.0,0.046]
[1672995314043,0.03531297,16816.0,16815.0,0.046]
[1672995314262,0.63671297,16816.0,16815.0,0.046]
[1672995315732,0.03531297,16816.0,16815.0,0.046]
[1672995315941,0.63671297,16816.0,16815.0,0.046]
[1672995316779,0.03531297,16816.0,16815.0,0.046]
[1672995316995,0.63671297,16816.0,16815.0,0.046]
[1672995329511,0.03531297,16816.0,16815.0,0.046]
[1672995329726,0.63671297,16816.0,16815.0,0.046]
[1672995329938,0.03531297,16816.0,16815.0,0.046]
[1672995330141,0.63671297,16816.0,16815.0,0.046]
[1672995330463,0.03531297,16816.0,16815.0,0.046]
[1672995330669,0.63671297,16816.0,16815.0,0.04589518]
[1672995331079,0.03531297,16816.0,16815.0,0.04589518]
[1672995331292,0.63671297,16816.0,16815.0,0.04589518]
[1672995331938,0.03531297,16816.0,16815.0,0.04589518]
[1672995332248,0.63671297,16816.0,16815.0,0.04589518]
[1672995335077,0.03531297,16816.0,16815.0,0.04589518]
[1672995335394,0.63671297,16816.0,16815.0,0.04589518]
[1672995336447,0.03531297,16816.0,16815.0,0.04589518]
[1672995336654,0.63671297,16816.0,16815.0,0.04589518]
[1672995347994,0.03531297,16816.0,16815.0,0.04589518]
[1672995348206,0.63671297,16816.0,16815.0,0.04589518]
[1672995349468,0.03531297,16816.0,16815.0,0.04589518]
[1672995349682,0.63671297,16816.0,16815.0,0.04589518]
[1672995350734,0.03531297,16816.0,16815.0,0.04589518]
[1672995350945,0.63671297,16816.0,16815.0,0.04589518]
[1672995363767,0.03531297,16816.0,16815.0,0.04589518]
[1672995363982,0.63671297,16816.0,16815.0,0.04589518]
[1672995375431,0.33601297,16816.0,16815.0,0.04589518]
[1672995375647,0.63671297,16816.0,16815.0,0.04589518]
[1672995376163,0.03531297,16816.0,16815.0,0.04589518]
[1672995376375,0.63671297,16816.0,16815.0,0.04589518]
[1672995378792,0.03531297,16816.0,16815.0,0.04589518]
[1672995379000,0.03531297,16816.0,16815.0,0.04574297]
[1672995379215,0.63671297,16816.0,16815.0,0.04574297]
[1672995383527,0.03531297,16816.0,16815.0,0.04574297]
[1672995383742,0.63671297,16816.0,16815.0,0.04574297]
[1672995392983,0.03531297,16816.0,16815.0,0.04574297]
[1672995393188,0.63671297,16816.0,16815.0,0.04574297]
[1672995397812,0.03531297,16816.0,16815.0,0.04574297]
[1672995398135,0.63671297,16816.0,16815.0,0.04574297]
[1672995424516,0.03531297,16816.0,16815.0,0.04574297]
[1672995424821,0.63671297,16816.0,16815.0,0.04574297]
[1672995425038,0.03531297,16816.0,16815.0,0.04574297]
[1672995425249,0.63671297,16816.0,16815.0,0.04553948]
[1672995425661,0.03531297,16816.0,16815.0,0.04553948]
[1672995425873,0.63671297,16816.0,16815.0,0.04553948]
[1672995426719,0.03531297,16816.0,16815.0,0.04553948]
[1672995426918,0.63671297,16816.0,16815.0,0.04553948]
[1672995428814,0.33601297,16816.0,16815.0,0.04553948]
[1672995429134,0.63671297,16816.0,16815.0,0.04553948]
[1672995434701,0.03531297,16816.0,16815.0,0.04553948]
[1672995434911,0.63671297,16816.0,16815.0,0.04553948]
[1672995436588,0.03531297,16816.0,16815.0,0.04553948]
[1672995436798,0.63671297,16816.0,16815.0,0.04553948]
[1672995437008,0.03531297,16816.0,16815.0,0.04553948]
[1672995437217,0.63671297,16816.0,16815.0,0.04553948]
[1672995438593,0.03531297,16816.0,16815.0,0.04553948]
[1672995438802,0.63671297,16816.0,16815.0,0.04553948]
[1672995439006,0.03531297,16816.0,16815.0,0.04553948]
[1672995439219,0.63671297,16816.0,16815.0,0.04553948]
[1672995440063,0.03531297,16816.0,16815.0,0.04553948]
[1672995440581,0.63671297,16816.0,16815.0,0.04553948]
[1672995444996,0.63871297,16816.0,16815.0,0.041]
[1672995451726,0.03731297,16816.0,16815.0,0.041]
[1672995451938,0.63871297,16816.0,16815.0,0.041]
[1672995454139,0.03731297,16816.0,16815.0,0.041]
[1672995454662,0.63871297,16816.0,16815.0,0.041]
[1672995457713,0.03731297,16816.0,16815.0,0.041]
[1672995458127,0.63871297,16816.0,16815.0,0.041]
[1672995464436,0.03731297,16816.0,16815.0,0.041]
[1672995464647,0.63871297,16816.0,16815.0,0.041]
[1672995467802,0.03731297,16816.0,16815.0,0.041]
[1672995468221,0.63871297,16816.0,16815.0,0.041]
[1672995468748,0.03731297,16816.0,16815.0,0.041]
[1672995469060,0.63871297,16816.0,16815.0,0.041]
[1672995469475,0.03731297,16816.0,16815.0,0.041]
[1672995469687,0.63871297,16816.0,16815.0,0.041]
[1672995469903,0.03731297,16816.0,16815.0,0.041]
[1672995470104,0.63871297,16816.0,16815.0,0.041]
[1672995473898,0.63871297,16816.0,16815.0,0.04086837]
[1672995474947,0.03731297,16816.0,16815.0,0.04086837]
[1672995475159,0.63871297,16816.0,16815.0,0.04086837]
[1672995483149,0.03731297,16816.0,16815.0,0.04086837]
[1672995483365,0.63871297,16816.0,16815.0,0.04086837]
[1672995486932,0.33801297,16816.0,16815.0,0.04086837]
[1672995487148,0.63871297,16816.0,16815.0,0.04086837]
[1672995494610,0.03731297,16816.0,16815.0,0.04086837]
[1672995494822,0.63871297,16816.0,16815.0,0.04086837]
[1672995503448,0.03731297,16816.0,16815.0,0.04086837]
[1672995503766,0.63871297,16816.0,16815.0,0.04086837]
[1672995507009,0.03731297,16816.0,16815.0,0.04086837]
[1672995507222,0.63871297,16816.0,16815.0,0.04086837]
[1672995509020,0.03731297,16816.0,16815.0,0.04086837]
[1672995509332,0.63871297,16816.0,16815.0,0.04086837]
[1672995517736,0.03731297,16816.0,16815.0,0.04086837]
[1672995517947,0.63871297,16816.0,16815.0,0.04086837]
[1672995518160,0.03731297,16816.0,16815.0,0.04086837]
[1672995518572,0.63871297,16816.0,16815.0,0.04086837]
[1672995524887,0.63871297,16816.0,16815.0,0.04066911]
[1672995531194,0.03731297,16816.0,16815.0,0.04066911]
[1672995531509,0.63871297,16816.0,16815.0,0.04066911]
[1672995532245,0.03731297,16816.0,16815.0,0.04066911]
[1672995532557,0.63871297,16816.0,16815.0,0.04066911]
[1672995537701,0.03731297,16816.0,16815.0,0.04066911]
[1672995538025,0.63871297,16816.0,16815.0,0.04066911]
[1672995539176,0.03731297,16816.0,16815.0,0.04066911]
[1672995539388,0.63871297,16816.0,16815.0,0.04066911]
[1672995539917,0.03731297,16816.0,16815.0,0.04066911]
[1672995540121,0.63871297,16816.0,16815.0,0.04066911]
[1672995540644,0.03731297,16816.0,16815.0,0.04066911]
[1672995540968,0.63871297,16816.0,16815.0,0.04066911]
[1672995541904,0.03731297,16816.0,16815.0,0.04066911]
[1672995542123,0.63871297,16816.0,16815.0,0.04066911]
[1672995543488,0.03731297,16816.0,16815.0,0.04066911]
[1672995543689,0.63871297,16816.0,16815.0,0.04066911]
[1672995545055,0.03731297,16816.0,16815.0,0.04066911]
[1672995545263,0.63871297,16816.0,16815.0,0.04066911]
[1672995545477,0.03731297,16816.0,16815.0,0.04066911]
[1672995545687,0.63871297,16816.0,16815.0,0.04066911]
[1672995545891,0.03731297,16816.0,16815.0,0.04066911]
[1672995546105,0.63871297,16816.0,16815.0,0.04066911]
[1672995547997,0.03731297,16816.0,16815.0,0.04066911]
[1672995548208,0.63871297,16816.0,16815.0,0.04066911]
[1672995548631,0.03731297,16816.0,16815.0,0.04066911]
[1672995549157,0.63871297,16816.0,16815.0,0.04066911]
[1672995555046,0.03731297,16816.0,16815.0,0.04066911]
[1672995555260,0.63871297,16816.0,16815.0,0.04066911]
[1672995557672,0.03731297,16816.0,16815.0,0.04066911]
[1672995557883,0.63871297,16816.0,16815.0,0.04066911]
[1672995561458,0.03731297,16816.0,16815.0,0.04066911]
[1672995561677,0.63871297,16816.0,16815.0,0.04066911]
[1672995562193,0.03731297,16816.0,16815.0,0.04066911]
[1672995562403,0.63871297,16816.0,16815.0,0.04066911]
[1672995563457,0.03731297,16816.0,16815.0,0.04066911]
[1672995563769,0.63871297,16816.0,16815.0,0.04066911]
[1672995564820,0.33801297,16816.0,16815.0,0.04066911]
[1672995565041,0.63871297,16816.0,16815.0,0.04066911]
[1672995565239,0.03731297,16816.0,16815.0,0.04066911]
[1672995565450,0.63871297,16816.0,16815.0,0.04066911]
[1672995568394,0.03731297,16816.0,16815.0,0.04066911]
[1672995568599,0.63871297,16816.0,16815.0,0.04066911]
[1672995569028,0.03731297,16816.0,16815.0,0.04066911]
[1672995569236,0.63871297,16816.0,16815.0,0.04066911]
[1672995572182,0.63871297,16816.0,16815.0,0.04043075]
[1672995578074,0.03731297,16816.0,16815.0,0.04043075]
[1672995578386,0.63871297,16816.0,16815.0,0.04043075]
[1672995578595,0.03731297,16816.0,16815.0,0.04043075]
[1672995578806,0.63871297,16816.0,16815.0,0.04043075]
[1672995579533,0.03731297,16816.0,16815.0,0.04043075]
[1672995580173,0.63871297,16816.0,16815.0,0.04043075]
[1672995581641,0.03731297,16816.0,16815.0,0.04043075]
[1672995581851,0.63871297,16816.0,16815.0,0.04043075]
[1672995582903,0.03731297,16816.0,16815.0,0.04043075]
[1672995583112,0.63871297,16816.0,16815.0,0.04043075]
[1672995584688,0.33801297,16816.0,16815.0,0.04043075]
[1672995585007,0.63871297,16816.0,16815.0,0.04043075]
[1672995585322,0.03731297,16816.0,16815.0,0.04043075]
[1672995585743,0.63871297,16816.0,16815.0,0.04043075]
[1672995587524,0.03731297,16816.0,16815.0,0.04043075]
[1672995588573,0.63871297,16816.0,16815.0,0.04043075]
[1672995590684,0.33801297,16816.0,16815.0,0.04043075]
[1672995590995,0.63871297,16816.0,16815.0,0.04043075]
[1672995591618,0.03731297,16816.0,16815.0,0.04043075]
[1672995591830,0.63871297,16816.0,16815.0,0.04043075]
[1672995593621,0.03731297,16816.0,16815.0,0.04043075]
[1672995593826,0.63871297,16816.0,16815.0,0.04043075]
[1672995596456,0.33801297,16816.0,16815.0,0.04043075]
[1672995596657,0.63871297,16816.0,16815.0,0.04043075]
[1672995598037,0.03731297,16816.0,16815.0,0.04043075]
[1672995598237,0.63871297,16816.0,16815.0,0.04043075]
[1672995599604,0.03731297,16816.0,16815.0,0.04043075]
[1672995599814,0.63871297,16816.0,16815.0,0.04043075]
[1672995600019,0.33801297,16816.0,16815.0,0.04043075]
[1672995600238,0.63871297,16816.0,16815.0,0.04043075]
[1672995602337,0.03731297,16816.0,16815.0,0.04043075]
[1672995602548,0.63871297,16816.0,16815.0,0.04043075]
[1672995606233,0.63871297,16816.0,16811.0,0.3039]
[1672995606451,0.6014,16812.0,16811.0,0.3039]
[1672995606650,0.6014,16812.0,16810.0,0.5946]
[1672995606972,1.49410335,16812.0,16811.0,0.2]
[1672995608545,1.50810335,16812.0,16811.0,0.2]
[1672995610751,0.90670335,16812.0,16811.0,0.2]
[1672995610958,1.50810335,16812.0,16811.0,0.2]
[1672995616530,0.90670335,16812.0,16811.0,0.2]
[1672995616745,1.50810335,16812.0,16811.0,0.2]
[1672995621364,0.90670335,16812.0,16811.0,0.2]
[1672995621567,1.50810335,16812.0,16811.0,0.2]
[1672995635137,1.20740335,16812.0,16811.0,0.2]
[1672995635338,1.50810335,16812.0,16811.0,0.2]
[1672995640920,0.90670335,16812.0,16811.0,0.2]
[1672995641136,1.50810335,16812.0,16811.0,0.2]
[1672995645446,0.90670335,16812.0,16811.0,0.2]
[1672995645760,1.50810335,16812.0,16811.0,0.2]
[1672995648294,1.50810335,16812.0,16810.0,0.2]
[1672995648504,0.2,16811.0,16810.0,0.2]
[1672995648918,1.07982296,16811.0,16810.0,0.2]
[1672995649970,1.09382296,16811.0,16810.0,0.2]
[1672995655120,1.69522296,16811.0,16810.0,0.2]
[1672995655534,1.69522296,16811.0,16810.0,0.19976073]
[1672995657750,1.09382296,16811.0,16810.0,0.19976073]
[1672995658063,1.69522296,16811.0,16810.0,0.19976073]
[1672995659854,1.69511829,16811.0,16810.0,0.19976073]
[1672995668361,1.69511829,16811.0,16808.0,0.2]
[1672995668572,0.3007,16809.0,16808.0,0.2]
[1672995669098,1.19094356,16809.0,16808.0,0.2]
[1672995670359,1.20494356,16809.0,16808.0,0.2]
[1672995672778,1.50564356,16809.0,16808.0,0.2]
[1672995673400,0.90424356,16809.0,16808.0,0.2]
[1672995673616,1.50564356,16809.0,16808.0,0.2]
[1672995674036,0.90424356,16809.0,16808.0,0.2]
[1672995674250,1.50564356,16809.0,16808.0,0.2]
[1672995682969,0.2,16808.0,16807.0,0.5946]
[1672995683182,0.2,16808.0,16806.0,0.6837924]
[1672995683390,0.3007,16807.0,16806.0,0.6837924]
[1672995685399,0.3147,16807.0,16806.0,0.6837924]
[1672995686021,0.3147,16807.0,16806.0,0.5946]
[1672995686862,0.014,16807.0,16806.0,0.5946]
[1672995687071,0.3147,16807.0,16806.0,0.5946]
[1672995687286,0.3147,16807.0,16805.0,0.6837924]
[1672995687601,0.3147,16807.0,16806.0,0.7946]
[1672995688749,0.3137,16807.0,16806.0,0.7946]
[1672995689178,0.3147,16807.0,16806.0,0.7946]
[1672995694324,0.3147,16807.0,16806.0,0.8837924]